[Event "*** Qualifier 1: Titled Tuesday 3|2 Blitz"]
[Site "Chess.com"]
[Date "2017.04.04"]
[Round "10"]
[White "keisyzrk"]
[Black "severomorskij"]
[Result "1/2-1/2"]
[WhiteElo "2284"]
[BlackElo "2645"]
[TimeControl "180+2"]
[EndTime "15:24:33 PDT"]
[Termination "Game drawn by repetition"]

1. d4 {[%clk 0:03:02]} 1... Nf6 {[%clk 0:03:00.3]} 2. c4 {[%clk 0:03:00.2]} 2...
e6 {[%clk 0:03:01.5]} 3. Nc3 {[%clk 0:03:01.6]} 3... Bb4 {[%clk 0:03:01.7]} 4.
f3 {[%clk 0:03:02.8]} 4... O-O {[%clk 0:02:36.9]} 5. e4 {[%clk 0:03:01.4]} 5...
d5 {[%clk 0:02:38]} 6. e5 {[%clk 0:03:01.4]} 6... Nh5 {[%clk 0:02:25.7]} 7. Be3
{[%clk 0:02:41.5]} 7... f6 {[%clk 0:02:11.2]} 8. f4 {[%clk 0:02:40.9]} 8... fxe5
{[%clk 0:02:10.3]} 9. Qxh5 {[%clk 0:02:39.6]} 9... Rf5 {[%clk 0:01:41.2]} 10.
Qd1 {[%clk 0:02:11.1]} 10... exf4 {[%clk 0:01:35.1]} 11. Bf2 {[%clk 0:02:11.4]}
11... e5 {[%clk 0:01:27]} 12. dxe5 {[%clk 0:02:07.7]} 12... Rxe5+ {[%clk
0:01:25.8]} 13. Be2 {[%clk 0:02:09.2]} 13... Bg4 {[%clk 0:01:16.7]} 14. Kf1
{[%clk 0:01:51.8]} 14... Bxe2+ {[%clk 0:00:52.8]} 15. Ncxe2 {[%clk 0:01:52.5]}
15... Nc6 {[%clk 0:00:48.7]} 16. Nf3 {[%clk 0:01:53.4]} 16... Rf5 {[%clk
0:00:43.6]} 17. Qd3 {[%clk 0:01:48.6]} 17... Qd7 {[%clk 0:00:37.1]} 18. Rd1
{[%clk 0:01:47.6]} 18... Rd8 {[%clk 0:00:33.6]} 19. c5 {[%clk 0:01:31.8]} 19...
b6 {[%clk 0:00:26.1]} 20. Ned4 {[%clk 0:01:26]} 20... Rff8 {[%clk 0:00:17.8]}
21. Nxc6 {[%clk 0:00:58]} 21... Qxc6 {[%clk 0:00:18.2]} 22. Nd4 {[%clk 0:00:59]}
22... Qf6 {[%clk 0:00:15.4]} 23. c6 {[%clk 0:00:57.5]} 23... Bc5 {[%clk
0:00:14.6]} 24. a3 {[%clk 0:00:55.9]} 24... Rde8 {[%clk 0:00:15]} 25. b4 {[%clk
0:00:56.3]} 25... Bxd4 {[%clk 0:00:15.4]} 26. Qxd4 {[%clk 0:00:56.6]} 26... Qe7
{[%clk 0:00:13.8]} 27. Qxd5+ {[%clk 0:00:55.7]} 27... Kh8 {[%clk 0:00:14.7]} 28.
Qd7 {[%clk 0:00:39.9]} 28... Qe2+ {[%clk 0:00:14.6]} 29. Kg1 {[%clk 0:00:41.4]}
29... f3 {[%clk 0:00:11.4]} 30. g3 {[%clk 0:00:33.9]} 30... h6 {[%clk
0:00:12.5]} 31. h4 {[%clk 0:00:34.2]} 31... Re7 {[%clk 0:00:06.4]} 32. Qd4
{[%clk 0:00:27.8]} 32... Qc2 {[%clk 0:00:04.9]} 33. Kh2 {[%clk 0:00:22.7]} 33...
Re2 {[%clk 0:00:04.2]} 34. Rhf1 {[%clk 0:00:24.2]} 34... Qxc6 {[%clk 0:00:05.1]}
35. Qd7 {[%clk 0:00:22.6]} 35... Qc2 {[%clk 0:00:05.7]} 36. Kg1 {[%clk
0:00:22.4]} 36... Qg6 {[%clk 0:00:06]} 37. Qxc7 {[%clk 0:00:14.5]} 37... Qg4
{[%clk 0:00:06.5]} 38. Qd7 {[%clk 0:00:14.3]} 38... Rf5 {[%clk 0:00:03.9]} 39.
Kh2 {[%clk 0:00:08.5]} 39... h5 {[%clk 0:00:04.9]} 40. Rd4 {[%clk 0:00:07.6]}
40... Qg6 {[%clk 0:00:04.9]} 41. Qd8+ {[%clk 0:00:07.1]} 41... Kh7 {[%clk
0:00:05.7]} 42. Rd6 {[%clk 0:00:07.4]} 42... Qg4 {[%clk 0:00:06.6]} 43. Rd4
{[%clk 0:00:08.7]} 43... Qg6 {[%clk 0:00:07.3]} 44. Qd6 {[%clk 0:00:09.9]} 44...
Rf6 {[%clk 0:00:07.9]} 45. Qd5 {[%clk 0:00:11]} 45... Rf5 {[%clk 0:00:08.9]} 46.
Qc4 {[%clk 0:00:11.8]} 46... Rfe5 {[%clk 0:00:09.3]} 47. Rf4 {[%clk 0:00:11.9]}
47... Rc2 {[%clk 0:00:10.2]} 48. Qb3 {[%clk 0:00:12]} 48... Ree2 {[%clk
0:00:10.7]} 49. Qxf3 {[%clk 0:00:13.3]} 49... Red2 {[%clk 0:00:06]} 50. Rf5
{[%clk 0:00:14.2]} 50... Kh6 {[%clk 0:00:06.5]} 51. Kg1 {[%clk 0:00:13]} 51...
Kh7 {[%clk 0:00:06]} 52. Qxh5+ {[%clk 0:00:12.9]} 52... Qxh5 {[%clk 0:00:07.2]}
53. Rxh5+ {[%clk 0:00:14.8]} 53... Kg8 {[%clk 0:00:08.6]} 54. Rg5 {[%clk
0:00:15.6]} 54... Re2 {[%clk 0:00:08.9]} 55. h5 {[%clk 0:00:16.2]} 55... Kh7
{[%clk 0:00:09.3]} 56. Kg2 {[%clk 0:00:16.5]} 56... Ra2 {[%clk 0:00:09.7]} 57.
Kh3 {[%clk 0:00:16.1]} 57... Rxf2 {[%clk 0:00:10.5]} 58. Rxf2 {[%clk 0:00:14.2]}
58... Rxf2 {[%clk 0:00:12.1]} 59. a4 {[%clk 0:00:15.5]} 59... Rb2 {[%clk
0:00:10.5]} 60. Rb5 {[%clk 0:00:15]} 60... Kh6 {[%clk 0:00:09.6]} 61. Kg4 {[%clk
0:00:14.6]} 61... Rc2 {[%clk 0:00:10]} 62. Kh4 {[%clk 0:00:12.5]} 62... Rh2+
{[%clk 0:00:11]} 63. Kg4 {[%clk 0:00:12.6]} 63... Rc2 {[%clk 0:00:12.6]} 64. Kh3
{[%clk 0:00:13.7]} 64... Rc4 {[%clk 0:00:07.6]} 65. a5 {[%clk 0:00:13.4]} 65...
bxa5 {[%clk 0:00:07.5]} 66. bxa5 {[%clk 0:00:14.3]} 66... a6 {[%clk 0:00:06.6]}
67. Rb6+ {[%clk 0:00:13.6]} 67... Kxh5 {[%clk 0:00:07.7]} 68. Rxa6 {[%clk
0:00:15]} 68... Ra4 {[%clk 0:00:07.7]} 69. Ra7 {[%clk 0:00:11.4]} 69... g5
{[%clk 0:00:07.8]} 70. g4+ {[%clk 0:00:10.3]} 70... Kg6 {[%clk 0:00:08.2]} 71.
Ra6+ {[%clk 0:00:10.8]} 71... Kf7 {[%clk 0:00:08.8]} 72. Kg3 {[%clk 0:00:11.9]}
72... Ke7 {[%clk 0:00:07.8]} 73. Kf3 {[%clk 0:00:13]} 73... Rf4+ {[%clk
0:00:07.7]} 74. Kg3 {[%clk 0:00:12.7]} 74... Ra4 {[%clk 0:00:09.2]} 75. Ra7+
{[%clk 0:00:13.9]} 75... Kf6 {[%clk 0:00:10]} 76. a6 {[%clk 0:00:12.7]} 76...
Ke5 {[%clk 0:00:06.5]} 77. Re7+ {[%clk 0:00:12.1]} 77... Kf6 {[%clk 0:00:06.9]}
78. Ra7 {[%clk 0:00:12.4]} 78... Ra3+ {[%clk 0:00:07.1]} 79. Kf2 {[%clk
0:00:13]} 79... Ra4 {[%clk 0:00:08.1]} 80. Ra8 {[%clk 0:00:14.1]} 80... Kg7
{[%clk 0:00:05.8]} 81. Kf3 {[%clk 0:00:12.2]} 81... Rf4+ {[%clk 0:00:06.4]} 82.
Ke3 {[%clk 0:00:12.1]} 82... Rxg4 {[%clk 0:00:07.1]} 83. Rb8 {[%clk 0:00:10.1]}
83... Ra4 {[%clk 0:00:07.5]} 84. Rb7+ {[%clk 0:00:10]} 84... Kg6 {[%clk
0:00:07.8]} 85. a7 {[%clk 0:00:10.9]} 85... Kh5 {[%clk 0:00:06.2]} 86. Kf2
{[%clk 0:00:10.1]} 86... g4 {[%clk 0:00:05]} 87. Kg3 {[%clk 0:00:10.1]} 87...
Ra3+ {[%clk 0:00:06.1]} 88. Kg2 {[%clk 0:00:10.4]} 88... Kh4 {[%clk 0:00:05.9]}
89. Rh7+ {[%clk 0:00:05.5]} 89... Kg5 {[%clk 0:00:06.9]} 90. Rg7+ {[%clk
0:00:06.4]} 90... Kh4 {[%clk 0:00:08]} 91. Rh7+ {[%clk 0:00:06.9]} 91... Kg5
{[%clk 0:00:09]} 92. Rb7 {[%clk 0:00:08.2]} 92... Kh4 {[%clk 0:00:08.9]} 93.
Rh7+ {[%clk 0:00:09]} 93... Kg5 {[%clk 0:00:09.5]} 94. Rg7+ {[%clk 0:00:10.1]}
94... Kh4 {[%clk 0:00:10.5]} 95. Rh7+ {[%clk 0:00:11]} 95... Kg5 {[%clk
0:00:11.6]} 96. Rb7 {[%clk 0:00:12.2]} 96... Kh4 {[%clk 0:00:12.5]} 97. Rh7+
{[%clk 0:00:11.5]} 1/2-1/2